[Event "Early-Titled-Tuesday-Blitz-May-14-2024"]
[Site "Chess.com"]
[Date "2024.05.14"]
[Round "11"]
[White "MyDream003"]
[Black "GothamChess"]
[Result "1-0"]
[WhiteElo "2853"]
[BlackElo "2738"]
[TimeControl "180+1"]
[EndTime "10:07:01 PDT"]
[Termination "MyDream003 won by resignation"]

1. Nf3 {[%clk 0:02:59.5]} 1... g6 {[%clk 0:02:58.7]} 2. b3 {[%clk 0:03:00.4]}
2... Bg7 {[%clk 0:02:59]} 3. d4 {[%clk 0:03:01.2]} 3... d6 {[%clk 0:02:58.2]} 4.
Bb2 {[%clk 0:03:01.8]} 4... f5 {[%clk 0:02:58.4]} 5. e3 {[%clk 0:03:02.3]} 5...
Nf6 {[%clk 0:02:58.3]} 6. Be2 {[%clk 0:03:03]} 6... O-O {[%clk 0:02:57.3]} 7.
O-O {[%clk 0:03:01.5]} 7... Nc6 {[%clk 0:02:57.5]} 8. c4 {[%clk 0:03:01.6]} 8...
Ne4 {[%clk 0:02:53.1]} 9. Nc3 {[%clk 0:03:00.5]} 9... Nxc3 {[%clk 0:02:52.4]}
10. Bxc3 {[%clk 0:03:01.4]} 10... e5 {[%clk 0:02:51.7]} 11. dxe5 {[%clk
0:02:59.9]} 11... dxe5 {[%clk 0:02:49.5]} 12. Qd5+ {[%clk 0:02:57.8]} 12... Kh8
{[%clk 0:02:41.9]} 13. Qc5 {[%clk 0:02:50.2]} 13... Qe8 {[%clk 0:02:32.7]} 14.
Rfd1 {[%clk 0:02:40]} 14... b6 {[%clk 0:02:31.8]} 15. Qa3 {[%clk 0:02:39.8]}
15... Be6 {[%clk 0:02:13.9]} 16. Qb2 {[%clk 0:02:39.8]} 16... Bg8 {[%clk
0:02:11]} 17. b4 {[%clk 0:02:40.3]} 17... Qe7 {[%clk 0:01:44.7]} 18. b5 {[%clk
0:02:40.2]} 18... e4 {[%clk 0:01:28.2]} 19. bxc6 {[%clk 0:02:34.7]} 19... exf3
{[%clk 0:01:09.1]} 20. Rd7 {[%clk 0:02:34.2]} 20... Bxc3 {[%clk 0:01:08.4]} 21.
Qxc3+ {[%clk 0:02:23.2]} 21... Qf6 {[%clk 0:01:07.8]} 22. Qxf6+ {[%clk
0:02:22.7]} 22... Rxf6 {[%clk 0:01:08.7]} 23. Bxf3 {[%clk 0:02:23.4]} 23... Rc8
{[%clk 0:01:06.5]} 24. Bd5 {[%clk 0:02:21.5]} 24... Be6 {[%clk 0:00:57.3]} 25.
Re7 {[%clk 0:02:13.5]} 25... Bg8 {[%clk 0:00:46.6]} 26. Rd1 {[%clk 0:02:10.7]}
26... Rd6 {[%clk 0:00:45]} 27. f3 {[%clk 0:02:09.8]} 27... b5 {[%clk 0:00:41.5]}
28. Rd7 {[%clk 0:01:32.4]} 28... bxc4 {[%clk 0:00:33.4]} 29. Rxd6 {[%clk
0:01:32.6]} 29... cxd6 {[%clk 0:00:33.8]} 30. e4 {[%clk 0:01:33.3]} 30... Kg7
{[%clk 0:00:19.3]} 31. Kf2 {[%clk 0:01:25.5]} 31... Kf6 {[%clk 0:00:16.4]} 32.
Ke3 {[%clk 0:01:25.4]} 32... c3 {[%clk 0:00:14.4]} 33. Bxg8 {[%clk 0:01:22.3]}
33... c2 {[%clk 0:00:10.9]} 34. Rc1 {[%clk 0:01:21.4]} 34... Rxg8 {[%clk
0:00:09.8]} 35. Rxc2 {[%clk 0:01:22]} 35... Rc8 {[%clk 0:00:10.3]} 36. exf5
{[%clk 0:01:17.5]} 36... Kxf5 {[%clk 0:00:07.1]} 37. Kd4 {[%clk 0:01:15.9]}
37... Ke6 {[%clk 0:00:07.2]} 38. Re2+ {[%clk 0:01:14.9]} 1-0

[Event "Early-Titled-Tuesday-Blitz-May-14-2024"]
[Site "Chess.com"]
[Date "2024.05.14"]
[Round "11"]
[White "AnaKuchava"]
[Black "NowInChess"]
[Result "1-0"]
[WhiteElo "2194"]
[BlackElo "2230"]
[TimeControl "180+1"]
[EndTime "10:07:12 PDT"]
[Termination "AnaKuchava won on time"]

1. d4 {[%clk 0:03:00.9]} 1... Nf6 {[%clk 0:02:58.3]} 2. c4 {[%clk 0:03:00.3]}
2... c5 {[%clk 0:02:56.4]} 3. d5 {[%clk 0:02:59.2]} 3... b5 {[%clk 0:02:56.6]}
4. cxb5 {[%clk 0:02:58.8]} 4... a6 {[%clk 0:02:57.1]} 5. b6 {[%clk 0:02:59.4]}
5... d6 {[%clk 0:02:54.3]} 6. Nc3 {[%clk 0:02:59.7]} 6... Nbd7 {[%clk
0:02:53.4]} 7. e4 {[%clk 0:02:59.5]} 7... Nxb6 {[%clk 0:02:48.8]} 8. Nf3 {[%clk
0:02:59]} 8... g6 {[%clk 0:02:45.8]} 9. Bd3 {[%clk 0:02:58.5]} 9... Bg7 {[%clk
0:02:44.9]} 10. h3 {[%clk 0:02:59.1]} 10... O-O {[%clk 0:02:44.1]} 11. O-O
{[%clk 0:02:59.6]} 11... Rb8 {[%clk 0:02:44.2]} 12. Qe2 {[%clk 0:02:54.4]} 12...
c4 {[%clk 0:02:37.2]} 13. Bxc4 {[%clk 0:02:53.8]} 13... Nxc4 {[%clk 0:02:36.8]}
14. Qxc4 {[%clk 0:02:54.7]} 14... Qb6 {[%clk 0:02:27.7]} 15. Rb1 {[%clk
0:02:49.8]} 15... Bd7 {[%clk 0:02:19]} 16. Re1 {[%clk 0:02:48.6]} 16... Rfc8
{[%clk 0:02:18.2]} 17. Qd3 {[%clk 0:02:46.5]} 17... Rxc3 {[%clk 0:01:51.6]} 18.
Qxc3 {[%clk 0:02:37.8]} 18... Nxe4 {[%clk 0:01:49.1]} 19. Qe3 {[%clk 0:02:33]}
19... Nc5 {[%clk 0:01:33.2]} 20. Bd2 {[%clk 0:02:11]} 20... Bf5 {[%clk
0:01:30.3]} 21. Rbd1 {[%clk 0:02:05.1]} 21... Qxb2 {[%clk 0:01:21.8]} 22. Qxe7
{[%clk 0:02:01.1]} 22... Nd3 {[%clk 0:00:41.1]} 23. Re2 {[%clk 0:01:30.7]} 23...
Qf6 {[%clk 0:00:24.2]} 24. Qxf6 {[%clk 0:01:28.8]} 24... Bxf6 {[%clk 0:00:23.7]}
25. Ba5 {[%clk 0:01:23.2]} 25... Nc5 {[%clk 0:00:15.1]} 26. Bc7 {[%clk
0:01:20.5]} 26... Rc8 {[%clk 0:00:10.1]} 27. Bxd6 {[%clk 0:01:20.2]} 27... Ne4
{[%clk 0:00:10.3]} 28. Bb4 {[%clk 0:01:15.4]} 28... Rb8 {[%clk 0:00:10.3]} 29.
g4 {[%clk 0:01:06]} 29... Rxb4 {[%clk 0:00:08.7]} 30. gxf5 {[%clk 0:01:06.4]}
30... Nc3 {[%clk 0:00:08.3]} 31. Re8+ {[%clk 0:01:07.1]} 31... Kg7 {[%clk
0:00:08.4]} 32. Rd2 {[%clk 0:01:00.4]} 32... Rb1+ {[%clk 0:00:04.3]} 33. Kg2
{[%clk 0:00:59.6]} 33... Bg5 {[%clk 0:00:03.8]} 34. Nxg5 {[%clk 0:00:58.4]}
34... h6 {[%clk 0:00:02.9]} 35. Nf3 {[%clk 0:00:57.4]} 35... gxf5 {[%clk
0:00:01.2]} 36. d6 {[%clk 0:00:56.6]} 1-0

[Event "Early-Titled-Tuesday-Blitz-May-14-2024"]
[Site "Chess.com"]
[Date "2024.05.14"]
[Round "11"]
[White "ContrVersia"]
[Black "Legendinunknown"]
[Result "0-1"]
[WhiteElo "2887"]
[BlackElo "2840"]
[TimeControl "180+1"]
[EndTime "10:07:14 PDT"]
[Termination "Legendinunknown won by resignation"]

1. Nf3 {[%clk 0:02:51.5]} 1... Nf6 {[%clk 0:02:58.4]} 2. c4 {[%clk 0:02:50.8]}
2... g6 {[%clk 0:02:57.4]} 3. g3 {[%clk 0:02:51.3]} 3... Bg7 {[%clk 0:02:57.1]}
4. Bg2 {[%clk 0:02:52.2]} 4... O-O {[%clk 0:02:57.7]} 5. O-O {[%clk 0:02:53.1]}
5... c6 {[%clk 0:02:57.6]} 6. b3 {[%clk 0:02:52.7]} 6... d5 {[%clk 0:02:58.5]}
7. Bb2 {[%clk 0:02:52.9]} 7... Bf5 {[%clk 0:02:56.9]} 8. d3 {[%clk 0:02:51.3]}
8... Nbd7 {[%clk 0:02:54.7]} 9. Nbd2 {[%clk 0:02:48.9]} 9... Re8 {[%clk
0:02:54.8]} 10. Nh4 {[%clk 0:02:49.2]} 10... Be6 {[%clk 0:02:53.6]} 11. Qc2
{[%clk 0:02:49.3]} 11... Rc8 {[%clk 0:02:51.6]} 12. Rad1 {[%clk 0:02:47.7]}
12... b5 {[%clk 0:02:51.8]} 13. e4 {[%clk 0:02:46.9]} 13... Qa5 {[%clk
0:02:49.5]} 14. Bc3 {[%clk 0:02:42.1]} 14... Qa6 {[%clk 0:02:49.3]} 15. e5
{[%clk 0:02:30.4]} 15... Nh5 {[%clk 0:02:49]} 16. f4 {[%clk 0:02:28.9]} 16... f5
{[%clk 0:02:43.1]} 17. Nhf3 {[%clk 0:02:19.3]} 17... Bf7 {[%clk 0:02:23.2]} 18.
Qb2 {[%clk 0:01:39.8]} 18... e6 {[%clk 0:02:21.3]} 19. cxd5 {[%clk 0:01:38.5]}
19... cxd5 {[%clk 0:02:20.8]} 20. Bb4 {[%clk 0:01:38.4]} 20... Bf8 {[%clk
0:02:15.9]} 21. Bxf8 {[%clk 0:01:37.9]} 21... Kxf8 {[%clk 0:02:16.8]} 22. b4
{[%clk 0:01:36.3]} 22... Qb6+ {[%clk 0:02:16.9]} 23. Nd4 {[%clk 0:01:29.2]}
23... Rc7 {[%clk 0:02:14.1]} 24. Nb3 {[%clk 0:01:28.9]} 24... Rec8 {[%clk
0:02:14]} 25. Rc1 {[%clk 0:01:29.2]} 25... g5 {[%clk 0:02:08]} 26. fxg5 {[%clk
0:01:17.7]} 26... Nxe5 {[%clk 0:02:07.7]} 27. Nc5 {[%clk 0:01:18.1]} 27... Nxd3
{[%clk 0:01:53.7]} 28. Ndxe6+ {[%clk 0:00:46.5]} 28... Bxe6 {[%clk 0:01:52.3]}
29. Qh8+ {[%clk 0:00:46.2]} 29... Kf7 {[%clk 0:01:52.9]} 30. Qxh7+ {[%clk
0:00:30.4]} 30... Ng7 {[%clk 0:01:52.4]} 31. Rcd1 {[%clk 0:00:19.8]} 31... Rxc5
{[%clk 0:01:46.5]} 32. g6+ {[%clk 0:00:16.1]} 32... Kf8 {[%clk 0:01:46.3]} 33.
bxc5 {[%clk 0:00:11.9]} 33... Qxc5+ {[%clk 0:01:47.2]} 34. Kh1 {[%clk
0:00:12.3]} 34... Nf2+ {[%clk 0:01:47.3]} 35. Rxf2 {[%clk 0:00:12.8]} 35... Qxf2
{[%clk 0:01:48.1]} 36. Qh8+ {[%clk 0:00:13.3]} 36... Bg8 {[%clk 0:01:47.9]} 37.
Qh4 {[%clk 0:00:13.9]} 37... Qe2 {[%clk 0:01:45.4]} 38. Qf6+ {[%clk 0:00:13]}
38... Ke8 {[%clk 0:01:45.4]} 39. Qa1 {[%clk 0:00:09]} 39... Qe7 {[%clk
0:01:39.2]} 40. Re1 {[%clk 0:00:09.3]} 40... Be6 {[%clk 0:01:38.1]} 41. h4
{[%clk 0:00:09]} 41... Rd8 {[%clk 0:01:24.9]} 42. Qe5 {[%clk 0:00:08.5]} 42...
d4 {[%clk 0:01:24]} 43. Bc6+ {[%clk 0:00:07.7]} 43... Kf8 {[%clk 0:01:22.3]} 44.
Bxb5 {[%clk 0:00:06]} 44... d3 {[%clk 0:01:21.8]} 45. h5 {[%clk 0:00:05.6]}
45... d2 {[%clk 0:01:19]} 46. Rd1 {[%clk 0:00:05.1]} 46... Bd5+ {[%clk 0:01:19]}
0-1

[Event "Early-Titled-Tuesday-Blitz-May-14-2024"]
[Site "Chess.com"]
[Date "2024.05.14"]
[Round "11"]
[White "GMSrinath"]
[Black "savitha1030"]
[Result "1-0"]
[WhiteElo "2834"]
[BlackElo "2567"]
[TimeControl "180+1"]
[EndTime "10:07:28 PDT"]
[Termination "GMSrinath won by resignation"]

1. Nf3 {[%clk 0:03:00.9]} 1... c5 {[%clk 0:02:59.9]} 2. c4 {[%clk 0:02:59.9]}
2... Nf6 {[%clk 0:02:57.7]} 3. Nc3 {[%clk 0:02:59.1]} 3... Nc6 {[%clk
0:02:58.4]} 4. d4 {[%clk 0:02:59.5]} 4... cxd4 {[%clk 0:02:58.2]} 5. Nxd4 {[%clk
0:03:00.4]} 5... g6 {[%clk 0:02:58.5]} 6. g3 {[%clk 0:03:00.2]} 6... Bg7 {[%clk
0:02:58.7]} 7. Bg2 {[%clk 0:03:01]} 7... O-O {[%clk 0:02:59.3]} 8. O-O {[%clk
0:03:01.7]} 8... a6 {[%clk 0:02:41.9]} 9. b3 {[%clk 0:02:51.7]} 9... Nxd4 {[%clk
0:02:36.4]} 10. Qxd4 {[%clk 0:02:51.5]} 10... d5 {[%clk 0:02:27.7]} 11. Bb2
{[%clk 0:02:23.6]} 11... dxc4 {[%clk 0:02:27.2]} 12. Qxc4 {[%clk 0:02:22.2]}
12... Be6 {[%clk 0:01:43.5]} 13. Qb4 {[%clk 0:02:18.4]} 13... Rb8 {[%clk
0:01:34.1]} 14. Rfd1 {[%clk 0:02:10.2]} 14... Nd7 {[%clk 0:01:31.7]} 15. Rac1
{[%clk 0:02:02]} 15... Bf6 {[%clk 0:01:30.8]} 16. Na4 {[%clk 0:01:51.2]} 16...
Bxb2 {[%clk 0:00:53.8]} 17. Nxb2 {[%clk 0:01:52.1]} 17... Qb6 {[%clk 0:00:35.1]}
18. Qxe7 {[%clk 0:01:32.3]} 18... Ne5 {[%clk 0:00:25.2]} 19. Qf6 {[%clk
0:01:11.2]} 19... Ng4 {[%clk 0:00:20.7]} 20. Qf4 {[%clk 0:01:11.4]} 20... Rbd8
{[%clk 0:00:20.7]} 21. h3 {[%clk 0:01:07]} 21... Rxd1+ {[%clk 0:00:20.4]} 22.
Nxd1 {[%clk 0:00:54.7]} 22... Nxf2 {[%clk 0:00:11.8]} 23. Qxf2 {[%clk
0:00:51.5]} 23... Qa5 {[%clk 0:00:12.7]} 24. Nc3 {[%clk 0:00:41.7]} 24... Rc8
{[%clk 0:00:12.6]} 25. Qe3 {[%clk 0:00:42.1]} 25... b5 {[%clk 0:00:12.5]} 26.
Ne4 {[%clk 0:00:30.5]} 26... Rd8 {[%clk 0:00:12.9]} 27. Nf6+ {[%clk 0:00:28]}
27... Kg7 {[%clk 0:00:12.6]} 28. Qe5 {[%clk 0:00:25.7]} 28... Qd2 {[%clk
0:00:06.6]} 29. Ne4+ {[%clk 0:00:24.2]} 1-0

[Event "Early-Titled-Tuesday-Blitz-May-14-2024"]
[Site "Chess.com"]
[Date "2024.05.14"]
[Round "11"]
[White "C_K_G"]
[Black "Cherepov_Alexej"]
[Result "1-0"]
[WhiteElo "2307"]
[BlackElo "2414"]
[TimeControl "180+1"]
[EndTime "10:07:28 PDT"]
[Termination "C_K_G won by checkmate"]

1. e4 {[%clk 0:03:00.9]} 1... Nf6 {[%clk 0:02:54]} 2. e5 {[%clk 0:02:57]} 2...
Nd5 {[%clk 0:02:53.5]} 3. Nc3 {[%clk 0:02:56.4]} 3... e6 {[%clk 0:02:52.2]} 4.
Nxd5 {[%clk 0:02:55.5]} 4... exd5 {[%clk 0:02:53.1]} 5. d4 {[%clk 0:02:54.8]}
5... d6 {[%clk 0:02:51.3]} 6. Nf3 {[%clk 0:02:52.8]} 6... Bg4 {[%clk 0:02:51.1]}
7. Be2 {[%clk 0:02:48.8]} 7... Nc6 {[%clk 0:02:51.1]} 8. exd6 {[%clk 0:02:35.6]}
8... Bxd6 {[%clk 0:02:50.4]} 9. O-O {[%clk 0:02:34.7]} 9... Qd7 {[%clk
0:02:49.6]} 10. h3 {[%clk 0:02:30.8]} 10... Bf5 {[%clk 0:02:38.2]} 11. Re1
{[%clk 0:02:26.3]} 11... O-O-O {[%clk 0:02:35.8]} 12. Bb5 {[%clk 0:02:23.7]}
12... f6 {[%clk 0:02:31.7]} 13. c4 {[%clk 0:02:22.2]} 13... dxc4 {[%clk
0:02:20]} 14. d5 {[%clk 0:02:21.1]} 14... Bb4 {[%clk 0:02:20]} 15. Qa4 {[%clk
0:02:06.3]} 15... Qxd5 {[%clk 0:01:54.5]} 16. Bxc6 {[%clk 0:02:05.4]} 16... Qxc6
{[%clk 0:01:53.1]} 17. Qxb4 {[%clk 0:02:04.5]} 17... Bxh3 {[%clk 0:01:52.4]} 18.
Bf4 {[%clk 0:01:53.6]} 18... g5 {[%clk 0:01:50.7]} 19. Bg3 {[%clk 0:01:48.4]}
19... Bxg2 {[%clk 0:01:43.9]} 20. Re7 {[%clk 0:01:22.2]} 20... Rd7 {[%clk
0:01:09.3]} 21. Rxd7 {[%clk 0:01:16.8]} 21... Kxd7 {[%clk 0:01:09.8]} 22. Rd1+
{[%clk 0:01:10.9]} 22... Kc8 {[%clk 0:01:08.4]} 23. Nd4 {[%clk 0:01:01.5]} 23...
Qd5 {[%clk 0:00:44.8]} 24. Qe7 {[%clk 0:01:00.3]} 24... Qd7 {[%clk 0:00:25.8]}
25. Qxd7+ {[%clk 0:00:54.9]} 25... Kxd7 {[%clk 0:00:26.7]} 26. Kxg2 {[%clk
0:00:55]} 26... c6 {[%clk 0:00:23.2]} 27. Nf5+ {[%clk 0:00:43.1]} 27... Ke6
{[%clk 0:00:21.3]} 28. Ng7+ {[%clk 0:00:42.6]} 28... Kf7 {[%clk 0:00:19.3]} 29.
Rd7+ {[%clk 0:00:42.4]} 29... Kg6 {[%clk 0:00:19.8]} 30. Kf3 {[%clk 0:00:38.4]}
30... b5 {[%clk 0:00:17.9]} 31. Ne6 {[%clk 0:00:36.2]} 31... Re8 {[%clk
0:00:16.2]} 32. Rg7+ {[%clk 0:00:29.9]} 32... Kf5 {[%clk 0:00:12.1]} 33. Nd4#
{[%clk 0:00:29.7]} 1-0

[Event "Early-Titled-Tuesday-Blitz-May-14-2024"]
[Site "Chess.com"]
[Date "2024.05.14"]
[Round "11"]
[White "Alphafischer2019"]
[Black "average_trans"]
[Result "1-0"]
[WhiteElo "2666"]
[BlackElo "2387"]
[TimeControl "180+1"]
[EndTime "10:07:30 PDT"]
[Termination "Alphafischer2019 won by checkmate"]

1. Nf3 {[%clk 0:03:00.9]} 1... d5 {[%clk 0:02:59.7]} 2. g3 {[%clk 0:02:59.8]}
2... c5 {[%clk 0:02:59.8]} 3. Bg2 {[%clk 0:02:59.6]} 3... Nc6 {[%clk 0:03:00.2]}
4. d4 {[%clk 0:02:59.9]} 4... cxd4 {[%clk 0:02:59.9]} 5. Nxd4 {[%clk 0:03:00.8]}
5... e5 {[%clk 0:03:00.1]} 6. Nxc6 {[%clk 0:02:59.9]} 6... bxc6 {[%clk
0:03:00.7]} 7. c4 {[%clk 0:03:00.3]} 7... Be6 {[%clk 0:03:01.2]} 8. Nc3 {[%clk
0:02:58.3]} 8... Bb4 {[%clk 0:03:01.3]} 9. O-O {[%clk 0:02:57.5]} 9... Bxc3
{[%clk 0:03:01.5]} 10. bxc3 {[%clk 0:02:57.2]} 10... Ne7 {[%clk 0:03:02.2]} 11.
Ba3 {[%clk 0:02:55.2]} 11... O-O {[%clk 0:03:00.3]} 12. Qa4 {[%clk 0:02:45.3]}
12... dxc4 {[%clk 0:02:56.1]} 13. Rfd1 {[%clk 0:02:41.6]} 13... Qc7 {[%clk
0:02:53.6]} 14. Bd6 {[%clk 0:02:40.5]} 14... Qd8 {[%clk 0:02:37.7]} 15. Bxe5
{[%clk 0:02:38.1]} 15... Qb6 {[%clk 0:02:13.5]} 16. Rab1 {[%clk 0:02:34.1]}
16... Qc5 {[%clk 0:02:13.4]} 17. Bd6 {[%clk 0:02:32.9]} 17... Qg5 {[%clk
0:02:13.6]} 18. h4 {[%clk 0:02:25.7]} 18... Qf6 {[%clk 0:02:12.2]} 19. Rb7
{[%clk 0:02:24.7]} 19... Nd5 {[%clk 0:02:06.4]} 20. Bxf8 {[%clk 0:02:04.7]}
20... Nxc3 {[%clk 0:02:03.5]} 21. Be7 {[%clk 0:02:05.3]} 21... Qf5 {[%clk
0:01:46.7]} 22. Qxc6 {[%clk 0:01:57.8]} 22... Nxd1 {[%clk 0:01:45.2]} 23. Rb1
{[%clk 0:01:48]} 23... Qxf2+ {[%clk 0:01:38.7]} 24. Kh2 {[%clk 0:01:47.6]} 24...
Rc8 {[%clk 0:01:38.5]} 25. Rxd1 {[%clk 0:01:47.5]} 25... h6 {[%clk 0:01:34.3]}
26. Qf3 {[%clk 0:01:37.2]} 26... Qb6 {[%clk 0:01:17.2]} 27. Rc1 {[%clk
0:01:29.2]} 27... Qb2 {[%clk 0:01:12.4]} 28. Qa3 {[%clk 0:01:12.7]} 28... Qxe2
{[%clk 0:01:10.2]} 29. Qf3 {[%clk 0:01:06.8]} 29... Qxa2 {[%clk 0:01:09]} 30.
Bb4 {[%clk 0:01:07]} 30... Qb2 {[%clk 0:01:07.3]} 31. Qc3 {[%clk 0:01:04.1]}
31... Qe2 {[%clk 0:01:06]} 32. Rc2 {[%clk 0:01:01.6]} 32... Qd1 {[%clk
0:01:02.2]} 33. Rd2 {[%clk 0:01:01.2]} 33... Qb3 {[%clk 0:00:59.3]} 34. Rb2
{[%clk 0:00:50.5]} 34... Qd1 {[%clk 0:00:55.5]} 35. Qe5 {[%clk 0:00:47.7]} 35...
Qa1 {[%clk 0:00:50.2]} 36. Bc3 {[%clk 0:00:47.3]} 36... Kf8 {[%clk 0:00:42.9]}
37. Qxg7+ {[%clk 0:00:46.1]} 37... Ke8 {[%clk 0:00:43.2]} 38. Rb7 {[%clk
0:00:42.5]} 38... Qa3 {[%clk 0:00:37.5]} 39. Bb4 {[%clk 0:00:41.5]} 39... Qxb4
{[%clk 0:00:18.5]} 40. Rxb4 {[%clk 0:00:40.3]} 40... c3 {[%clk 0:00:19.4]} 41.
Rb7 {[%clk 0:00:39.2]} 41... c2 {[%clk 0:00:20.3]} 42. Qg8# {[%clk 0:00:39.5]}
1-0

[Event "Early-Titled-Tuesday-Blitz-May-14-2024"]
[Site "Chess.com"]
[Date "2024.05.14"]
[Round "11"]
[White "MeesvanOsch"]
[Black "Incognizance"]
[Result "1-0"]
[WhiteElo "2364"]
[BlackElo "1965"]
[TimeControl "180+1"]
[EndTime "10:07:30 PDT"]
[Termination "MeesvanOsch won by resignation"]

1. e4 {[%clk 0:02:53.2]} 1... c5 {[%clk 0:02:54.6]} 2. Nf3 {[%clk 0:02:52.5]}
2... d6 {[%clk 0:02:54.9]} 3. d4 {[%clk 0:02:52.8]} 3... cxd4 {[%clk 0:02:55.1]}
4. Nxd4 {[%clk 0:02:53.7]} 4... Nf6 {[%clk 0:02:55.7]} 5. Nc3 {[%clk 0:02:53.9]}
5... g6 {[%clk 0:02:55]} 6. Be3 {[%clk 0:02:52.8]} 6... Bg7 {[%clk 0:02:55.5]}
7. f3 {[%clk 0:02:52.7]} 7... O-O {[%clk 0:02:56]} 8. Qd2 {[%clk 0:02:51.2]}
8... Nc6 {[%clk 0:02:55.7]} 9. O-O-O {[%clk 0:02:51]} 9... d5 {[%clk 0:02:54.2]}
10. exd5 {[%clk 0:02:38.3]} 10... Nxd5 {[%clk 0:02:49.3]} 11. Nxc6 {[%clk
0:02:35.2]} 11... bxc6 {[%clk 0:02:49.1]} 12. Nxd5 {[%clk 0:02:35.5]} 12... cxd5
{[%clk 0:02:49.2]} 13. Qxd5 {[%clk 0:02:36.4]} 13... Qc7 {[%clk 0:02:47.5]} 14.
Qc5 {[%clk 0:02:35.3]} 14... Qb7 {[%clk 0:02:36.1]} 15. Qb5 {[%clk 0:02:35.6]}
15... Qc7 {[%clk 0:02:21.5]} 16. Qc4 {[%clk 0:02:35.9]} 16... Qe5 {[%clk
0:02:18.1]} 17. Qd4 {[%clk 0:01:59.4]} 17... Qb8 {[%clk 0:02:09.1]} 18. Qc4
{[%clk 0:01:41.5]} 18... Qxb2+ {[%clk 0:02:04.4]} 19. Kd2 {[%clk 0:01:42]} 19...
Rd8+ {[%clk 0:02:04.2]} 20. Bd3 {[%clk 0:01:42.3]} 20... Be6 {[%clk 0:01:59.1]}
21. Qa4 {[%clk 0:01:40.3]} 21... Bc3+ {[%clk 0:01:47]} 22. Ke2 {[%clk
0:01:40.1]} 22... Bd4 {[%clk 0:01:16]} 23. Rb1 {[%clk 0:01:37.2]} 23... Qc3
{[%clk 0:01:10.8]} 24. Qb4 {[%clk 0:01:31.3]} 24... Qxb4 {[%clk 0:01:00]} 25.
Rxb4 {[%clk 0:01:32.2]} 25... Bxe3 {[%clk 0:01:00.9]} 26. Kxe3 {[%clk
0:01:32.7]} 26... a5 {[%clk 0:00:55.3]} 27. Rb7 {[%clk 0:01:31.6]} 27... Rd7
{[%clk 0:00:54]} 28. Rxd7 {[%clk 0:01:29.5]} 28... Bxd7 {[%clk 0:00:54.3]} 29.
Rb1 {[%clk 0:01:30.4]} 29... Be6 {[%clk 0:00:54.1]} 30. a3 {[%clk 0:01:28.6]}
30... Ra7 {[%clk 0:00:48.5]} 31. Rb6 {[%clk 0:01:26.4]} 31... h5 {[%clk
0:00:46.8]} 32. Bxg6 {[%clk 0:01:25.7]} 32... fxg6 {[%clk 0:00:44.7]} 33. Rxe6
{[%clk 0:01:25.4]} 33... Kf7 {[%clk 0:00:45.6]} 34. Rc6 {[%clk 0:01:25]} 34...
e6 {[%clk 0:00:42]} 35. c4 {[%clk 0:01:23.2]} 35... Kf6 {[%clk 0:00:41.2]} 36.
Kd4 {[%clk 0:01:20.8]} 36... Rd7+ {[%clk 0:00:40.4]} 37. Kc3 {[%clk 0:01:21.3]}
37... Rd1 {[%clk 0:00:39.5]} 38. c5 {[%clk 0:01:21.3]} 38... Rg1 {[%clk
0:00:36.8]} 39. Ra6 {[%clk 0:01:18.4]} 39... Rxg2 {[%clk 0:00:35.2]} 40. c6
{[%clk 0:01:18.9]} 40... Rg1 {[%clk 0:00:31.6]} 41. Kd4 {[%clk 0:01:16]} 41...
Rd1+ {[%clk 0:00:28.1]} 42. Kc5 {[%clk 0:01:16]} 42... Rc1+ {[%clk 0:00:28.1]}
43. Kd6 {[%clk 0:01:15.9]} 43... Rd1+ {[%clk 0:00:27.9]} 44. Kc7 {[%clk
0:01:16.3]} 44... Ke7 {[%clk 0:00:18.9]} 45. Rxa5 {[%clk 0:01:15]} 45... Rd8
{[%clk 0:00:18.7]} 46. Ra7 {[%clk 0:01:10.3]} 46... Re8 {[%clk 0:00:12.7]} 47.
a4 {[%clk 0:01:10.6]} 47... Kf6 {[%clk 0:00:12.4]} 48. Kd6 {[%clk 0:01:09]}
48... Rd8+ {[%clk 0:00:12.5]} 49. Rd7 {[%clk 0:01:09.3]} 49... Ra8 {[%clk
0:00:11.7]} 50. c7 {[%clk 0:01:09.9]} 50... Ra6+ {[%clk 0:00:12.6]} 51. Kc5
{[%clk 0:01:09.9]} 51... Ra8 {[%clk 0:00:09.5]} 52. Rd8 {[%clk 0:01:10.2]} 52...
Ra7 {[%clk 0:00:05.9]} 53. c8=Q {[%clk 0:01:10]} 1-0

[Event "Early-Titled-Tuesday-Blitz-May-14-2024"]
[Site "Chess.com"]
[Date "2024.05.14"]
[Round "11"]
[White "ccccvhhhj"]
[Black "Crazy_girl99"]
[Result "0-1"]
[WhiteElo "2450"]
[BlackElo "2631"]
[TimeControl "180+1"]
[EndTime "10:07:35 PDT"]
[Termination "Crazy_girl99 won on time"]

1. e4 {[%clk 0:02:57.5]} 1... e5 {[%clk 0:03:00]} 2. Nf3 {[%clk 0:02:56.6]} 2...
Nc6 {[%clk 0:03:00.5]} 3. d4 {[%clk 0:02:57.3]} 3... exd4 {[%clk 0:03:00.7]} 4.
Nxd4 {[%clk 0:02:58.2]} 4... Nf6 {[%clk 0:03:00.8]} 5. Bb5 {[%clk 0:02:58.4]}
5... Bc5 {[%clk 0:02:52.9]} 6. Nb3 {[%clk 0:02:58]} 6... Bb6 {[%clk 0:02:47.4]}
7. Nc3 {[%clk 0:02:58.7]} 7... O-O {[%clk 0:02:45.5]} 8. Bg5 {[%clk 0:02:59.4]}
8... d6 {[%clk 0:02:39.5]} 9. O-O {[%clk 0:02:58.7]} 9... Be6 {[%clk 0:02:33.4]}
10. Kh1 {[%clk 0:02:59]} 10... h6 {[%clk 0:02:15.8]} 11. Bh4 {[%clk 0:02:58.2]}
11... Ne5 {[%clk 0:01:53.4]} 12. f4 {[%clk 0:02:58.1]} 12... Neg4 {[%clk
0:01:44.9]} 13. Qf3 {[%clk 0:02:49.5]} 13... Ne3 {[%clk 0:01:39.6]} 14. e5
{[%clk 0:02:10.5]} 14... Bg4 {[%clk 0:01:13.9]} 15. Qxb7 {[%clk 0:01:25.8]}
15... Rb8 {[%clk 0:01:11.7]} 16. Qc6 {[%clk 0:01:24.5]} 16... Nxf1 {[%clk
0:00:59.9]} 17. exf6 {[%clk 0:01:14.4]} 17... Ne3 {[%clk 0:00:50]} 18. Nd5
{[%clk 0:00:33.9]} 18... Nxd5 {[%clk 0:00:46]} 19. Qxd5 {[%clk 0:00:32.7]} 19...
g6 {[%clk 0:00:46.1]} 20. Bd3 {[%clk 0:00:28.5]} 20... Be6 {[%clk 0:00:29.4]}
21. Qf3 {[%clk 0:00:23.9]} 21... Qd7 {[%clk 0:00:27.4]} 22. h3 {[%clk
0:00:23.4]} 22... c5 {[%clk 0:00:24.9]} 23. f5 {[%clk 0:00:11.6]} 23... Bxf5
{[%clk 0:00:19.5]} 24. Qf4 {[%clk 0:00:11]} 24... Kh7 {[%clk 0:00:13.9]} 25. Bg5
{[%clk 0:00:09]} 25... Bxd3 {[%clk 0:00:10.2]} 0-1